[Event "European Online Club-ch-F 2021"]
[Site "Online"]
[Date "2021.03.27"]
[Round "6.7"]
[White "Stolyarsky, Yegor"]
[Black "Cantin, Loic"]
[Result "1-0"]
[ECO "D11"]
[WhiteElo "2063"]
[BlackElo "2182"]
[Annotator "NA"]
[PlyCount "155"]
[EventDate "2021.03.27"]
[EventType "team-tourn"]
[EventCountry "NET"]
[SourceTitle "playchess.com"]
[Source "ChessBase"]
[SourceQuality "1"]
[TimeControl "900+5"]

1. d4 {[%emt 0:00:00]} d5 {[%emt 0:00:05]} 2. Nf3 {[%emt 0:00:04]} Nf6 {[%emt 0:00:15]} 3. g3 {[%emt 0:00:04]} c6 {[%emt 0:00:12]} 4. Bg2 {[%emt 0:00:01]} Bf5 {[%emt 0:00:12]} 5. O-O {[%emt 0:00:03]} e6 {[%emt 0:00:07]} 6. c4 {[%emt 0:00:03]} Nbd7 {[%emt 0:00:11]} 7. Nc3 {[%emt 0:00:08]} h6 {[%emt 0:00:06]} 8. b3 {[%emt 0:00:06]} Bd6 {[%emt 0:00:31]} 9. Bb2 {[%emt 0:00:09]} O-O {[%emt 0:00:05]} 10. Nd2 {[%emt 0:00:01]} Qe7 {[%emt 0:02:22]} 11. e4 {[%emt 0:00:05]} dxe4 {[%emt 0:00:04]} 12. Ndxe4 {[%emt 0:00:02]} Nxe4 {[%emt 0:00:04]} 13. Nxe4 {[%emt 0:00:02]} Bb4 {[%emt 0:00:59]} 14. Qe2 {[%emt 0:00:21]} Rfe8 {[%emt 0:00:49]} 15. a3 {[%emt 0:00:23]} Ba5 {[%emt 0:00:06]} 16. b4 {[%emt 0:00:06]} Bc7 {[%emt 0:00:08]} 17. Rfe1 {[%emt 0:00:24]} Rad8 {[%emt 0:01:18]} 18. Rad1 {[%emt 0:00:07]} a5 {[%emt 0:02:45]} 19. Bc3 {[%emt 0:00:19]} Ra8 {[%emt 0:00:59]} 20. d5 {[%emt 0:00:52]} cxd5 {[%emt 0:01:27]} 21. cxd5 {[%emt 0:00:05]} Bxe4 {[%emt 0:00:27]} 22. Qxe4 {[%emt 0:00:35]} Nf6 {[%emt 0:00:56]} 23. Bxf6 {[%emt 0:00:06]} Qxf6 {[%emt 0:00:04]} 24. d6 {[%emt 0:00:09]} Bb6 {[%emt 0:00:12]} 25. Re2 {[%emt 0:00:11]} Rab8 {[%emt 0:00:13]} 26. bxa5 {[%emt 0:01:04]} Bxa5 {[%emt 0:00:03]} 27. Qe5 {[%emt 0:00:12]} Bb6 {[%emt 0:00:30]} 28. Qxf6 {[%emt 0:00:16]} gxf6 {[%emt 0:00:02]} 29. Rb2 {[%emt 0:02:10]} Bc5 {[%emt 0:00:04]} 30. Rb5 {[%emt 0:00:26]} Bxa3 {[%emt 0:00:21]} 31. Rd3 {[%emt 0:00:05]} Bc1 {[%emt 0:00:27]} 32. Rc3 {[%emt 0:00:52]} Rec8 {[%emt 0:00:14]} 33. Rxb7 {[%emt 0:00:12]} Bd2 {[%emt 0:00:11]} 34. Rc2 {[%emt 0:04:09]} Ba5 {[%emt 0:00:03]} 35. d7 {[%emt 0:00:11]} Rxc2 {[%emt 0:00:35]} 36. Rxb8+ {[%emt 0:00:02]} Kg7 {[%emt 0:00:02]} 37. d8=Q {[%emt 0:00:08]} Bxd8 {[%emt 0:00:02]} 38. Rxd8 {[%emt 0:00:00]} Rc1+ {[%emt 0:00:01]} 39. Bf1 {[%emt 0:00:01]} f5 {[%emt 0:00:02]} 40. Kg2 {[%emt 0:00:04]} Rc2 {[%emt 0:00:04]} 41. Bd3 {[%emt 0:00:32]} Rc7 {[%emt 0:00:05]} 42. Bb5 {[%emt 0:00:08]} Rb7 {[%emt 0:00:24]} 43. Bc6 {[%emt 0:00:02]} Rc7 {[%emt 0:00:02]} 44. Bf3 {[%emt 0:00:02]} e5 {[%emt 0:00:08]} 45. Bd5 {[%emt 0:00:06]} Re7 {[%emt 0:00:10]} 46. Kf3 {[%emt 0:00:16]} Ra7 {[%emt 0:00:03]} 47. Rb8 {[%emt 0:00:11]} Ra3+ {[%emt 0:00:05]} 48. Rb3 {[%emt 0:00:04]} Ra7 {[%emt 0:00:03]} 49. Rb7 {[%emt 0:00:03]} Ra3+ {[%emt 0:00:02]} 50. Ke2 {[%emt 0:00:11]} Kg6 {[%emt 0:00:03]} 51. Bxf7+ {[%emt 0:00:11]} Kf6 {[%emt 0:00:01]} 52. Bd5 {[%emt 0:00:27]} e4 {[%emt 0:00:13]} 53. Rb3 {[%emt 0:00:10]} Ra5 {[%emt 0:00:04]} 54. Bg8 {[%emt 0:00:18]} Ke5 {[%emt 0:00:06]} 55. Ke3 {[%emt 0:00:12]} Rc5 {[%emt 0:00:02]} 56. f4+ {[%emt 0:00:20]} exf3 {[%emt 0:00:18]} 57. Kxf3 {[%emt 0:00:02]} Kf6 {[%emt 0:00:02]} 58. Rb6+ {[%emt 0:00:13]} Kg7 {[%emt 0:00:02]} 59. Be6 {[%emt 0:00:11]} Kf6 {[%emt 0:00:12]} 60. Bb3+ {[%emt 0:00:01]} Kg7 {[%emt 0:00:03]} 61. Kf4 {[%emt 0:00:05]} Ra5 {[%emt 0:00:03]} 62. h4 {[%emt 0:00:05]} Rc5 {[%emt 0:00:04]} 63. h5 {[%emt 0:00:06]} Ra5 {[%emt 0:00:03]} 64. Rg6+ {[%emt 0:00:14]} Kh7 {[%emt 0:00:02]} 65. Bc2 {[%emt 0:00:34]} Rc5 {[%emt 0:00:22]} 66. Bxf5 {[%emt 0:00:04]} Kh8 {[%emt 0:00:04]} 67. Rxh6+ {[%emt 0:00:12]} Kg7 {[%emt 0:00:01]} 68. Re6 {[%emt 0:00:04]} Rc4+ {[%emt 0:00:03]} 69. Kg5 {[%emt 0:00:02]} Kf8 {[%emt 0:00:01]} 70. h6 {[%emt 0:00:04]} Kf7 {[%emt 0:00:05]} 71. h7 {[%emt 0:00:07]} Rc8 {[%emt 0:00:16]} 72. Rf6+ {[%emt 0:00:04]} Kg7 {[%emt 0:00:01]} 73. Bxc8 {[%emt 0:00:04]} Kh8 {[%emt 0:00:01]} 74. Rg6 {[%emt 0:00:04]} Kxh7 {[%emt 0:00:03]} 75. Kf6 {[%emt 0:00:04]} Kh8 {[%emt 0:00:02]} 76. Rh6+ {[%emt 0:00:03]} Kg8 {[%emt 0:00:01]} 77. Be6+ {[%emt 0:00:01]} Kf8 {[%emt 0:00:01]} 78. Rh8# {[%emt 0:00:01]} 1-0

[Event "European Online Club-ch-F 2021"]
[Site "Online"]
[Date "2021.03.27"]
[Round "6.8"]
[White "Saatdjian, Stephane"]
[Black "Gleizer, Adar"]
[Result "1-0"]
[ECO "C30"]
[WhiteElo "2131"]
[BlackElo "1833"]
[Annotator "NA"]
[PlyCount "81"]
[EventDate "2021.03.27"]
[EventType "team-tourn"]
[EventCountry "NET"]
[SourceTitle "playchess.com"]
[Source "ChessBase"]
[SourceQuality "1"]
[TimeControl "900+5"]

1. e4 {[%emt 0:00:00]} e5 {[%emt 0:00:05]} 2. Bc4 {[%emt 0:00:03]} Nf6 {[%emt 0:00:04]} 3. d3 {[%emt 0:00:02]} Bc5 {[%emt 0:00:02]} 4. Nc3 {[%emt 0:00:04]} Nc6 {[%emt 0:00:04]} 5. f4 {[%emt 0:00:01]} d6 {[%emt 0:00:08]} 6. Nf3 {[%emt 0:00:01]} Bg4 {[%emt 0:00:03]} 7. Na4 {[%emt 0:00:02]} Bb6 {[%emt 0:00:04]} 8. Nxb6 {[%emt 0:00:03]} axb6 {[%emt 0:00:01]} 9. a3 {[%emt 0:00:06]} Nd4 {[%emt 0:00:40]} 10. c3 {[%emt 0:01:37]} Nxf3+ {[%emt 0:00:34]} 11. gxf3 {[%emt 0:00:03]} Bh3 {[%emt 0:00:02]} 12. Rg1 {[%emt 0:02:59]} Nh5 {[%emt 0:02:26]} 13. fxe5 {[%emt 0:03:29]} Qh4+ {[%emt 0:00:19]} 14. Ke2 {[%emt 0:00:03]} dxe5 {[%emt 0:00:25]} 15. Qe1 {[%emt 0:00:38]} Nf4+ {[%emt 0:00:51]} 16. Bxf4 {[%emt 0:00:11]} Qxf4 {[%emt 0:00:25]} 17. Qg3 {[%emt 0:00:09]} Qxg3 {[%emt 0:01:19]} 18. Rxg3 {[%emt 0:00:03]} Be6 {[%emt 0:00:29]} 19. Bxe6 {[%emt 0:00:04]} fxe6 {[%emt 0:00:01]} 20. Rxg7 {[%emt 0:00:02]} O-O-O {[%emt 0:00:07]} 21. Rag1 {[%emt 0:00:06]} Rd7 {[%emt 0:00:14]} 22. Rg8+ {[%emt 0:00:10]} Rxg8 {[%emt 0:00:02]} 23. Rxg8+ {[%emt 0:00:01]} Rd8 {[%emt 0:00:01]} 24. Rxd8+ {[%emt 0:00:34]} Kxd8 {[%emt 0:00:02]} 25. Ke3 {[%emt 0:00:15]} Ke7 {[%emt 0:00:08]} 26. f4 {[%emt 0:00:07]} exf4+ {[%emt 0:00:52]} 27. Kxf4 {[%emt 0:00:03]} Kf6 {[%emt 0:00:28]} 28. d4 {[%emt 0:00:18]} c6 {[%emt 0:00:44]} 29. c4 {[%emt 0:00:25]} b5 {[%emt 0:02:29]} 30. cxb5 {[%emt 0:00:29]} cxb5 {[%emt 0:00:11]} 31. d5 {[%emt 0:00:14]} exd5 {[%emt 0:00:12]} 32. exd5 {[%emt 0:00:03]} h6 {[%emt 0:00:18]} 33. h4 {[%emt 0:00:43]} Ke7 {[%emt 0:00:42]} 34. Ke5 {[%emt 0:00:05]} Kd7 {[%emt 0:00:18]} 35. d6 {[%emt 0:00:10]} b4 {[%emt 0:00:16]} 36. axb4 {[%emt 0:00:17]} Kd8 {[%emt 0:00:05]} 37. Ke6 {[%emt 0:01:23]} Ke8 {[%emt 0:00:04]} 38. h5 {[%emt 0:00:35]} Kd8 {[%emt 0:00:06]} 39. d7 {[%emt 0:00:11]} b5 {[%emt 0:00:07]} 40. b3 {[%emt 0:00:02]} Kc7 {[%emt 0:00:06]} 41. Ke7 {[%emt 0:00:01]} 1-0

[Event "European Online Club-ch-F 2021"]
[Site "Online"]
[Date "2021.03.27"]
[Round "6.9"]
[White "Maghsoodloo, Parham"]
[Black "Hellers, Ferdinand"]
[Result "1-0"]
[ECO "A72"]
[WhiteElo "2676"]
[BlackElo "2592"]
[Annotator "ChessBase"]
[PlyCount "47"]
[EventDate "2021.03.27"]
[EventType "team-tourn"]
[EventCountry "NET"]
[SourceTitle "playchess.com"]
[Source "ChessBase"]
[SourceQuality "1"]
[TimeControl "900+5"]

1. d4 {[%emt 0:00:00]} Nf6 {[%emt 0:00:04]} 2. c4 {[%emt 0:00:02]} c5 {[%emt 0:00:04]} 3. d5 {[%emt 0:00:02]} e6 {[%emt 0:00:02]} 4. Nc3 {[%emt 0:00:02]} exd5 {[%emt 0:00:06]} 5. cxd5 {[%emt 0:00:01]} d6 {[%emt 0:00:02]} 6. e4 {[%emt 0:00:03]} g6 {[%emt 0:00:02]} 7. Be2 {[%emt 0:00:01]} Bg7 {[%emt 0:00:02]} 8. Bg5 {[%emt 0:00:02]} h6 {[%emt 0:00:21]} 9. Bh4 {[%emt 0:00:02]} O-O {[%emt 0:00:21]} 10. Nf3 {[%emt 0:00:02]} g5 {[%emt 0:00:30]} 11. Bg3 {[%emt 0:00:02]} Nh5 {[%emt 0:00:01]} 12. Nd2 {[%emt 0:00:01]} Nxg3 {[%emt 0:00:03]} 13. hxg3 {[%emt 0:00:00]} Nd7 {[%emt 0:00:16]} 14. Nc4 {[%emt 0:00:03]} Nf6 {[%emt 0:00:57]} 15. a4 {[%emt 0:00:35]} Rb8 {[%emt 0:01:09]} 16. Qc2 {[%emt 0:00:55]} Re8 {[%emt 0:00:28]} 17. O-O-O {[%emt 0:02:53]} b6 {[%emt 0:03:59]} 18. f4 {[%emt 0:00:03]} Ng4 {[%emt 0:03:52]} 19. Nb5 {[%emt 0:02:30]} Bf8 {[%emt 0:02:03]} 20. Nxa7 {[%emt 0:00:10]} Bd7 {[%emt 0:00:33]} 21. e5 {[%emt 0:00:58]} dxe5 {[%emt 0:00:16]} 22. Nc6 {[%emt 0:00:04]} Qf6 {[%emt 0:00:27]} 23. fxe5 {[%emt 0:02:20]} Nxe5 {[%emt 0:00:20]} 24. Rhf1 {[%emt 0:00:04]} 1-0

[Event "European Online Club-ch-F 2021"]
[Site "Online"]
[Date "2021.03.27"]
[Round "6.10"]
[White "Rogule, Laura"]
[Black "Van Wely, Loek"]
[Result "1/2-1/2"]
[ECO "E60"]
[WhiteElo "2286"]
[BlackElo "2620"]
[Annotator "ChessBase"]
[PlyCount "118"]
[EventDate "2021.03.27"]
[EventType "team-tourn"]
[EventCountry "NET"]
[SourceTitle "playchess.com"]
[Source "ChessBase"]
[SourceQuality "1"]
[TimeControl "900+5"]

1. d4 {[%emt 0:00:00]} Nf6 {[%emt 0:00:05]} 2. c4 {[%emt 0:00:06]} g6 {[%emt 0:00:22]} 3. Nf3 {[%emt 0:00:22]} Bg7 {[%emt 0:00:03]} 4. g3 {[%emt 0:00:04]} c5 {[%emt 0:00:20]} 5. d5 {[%emt 0:00:35]} b5 {[%emt 0:00:14]} 6. cxb5 {[%emt 0:00:09]} a6 {[%emt 0:00:06]} 7. bxa6 {[%emt 0:00:14]} d6 {[%emt 0:00:20]} 8. Nc3 {[%emt 0:00:29]} O-O {[%emt 0:00:12]} 9. Bg2 {[%emt 0:00:38]} Nxa6 {[%emt 0:00:17]} 10. O-O {[%emt 0:00:31]} Bf5 {[%emt 0:01:14]} 11. Nh4 {[%emt 0:02:01]} Bd7 {[%emt 0:00:04]} 12. f4 {[%emt 0:00:33]} Qb6 {[%emt 0:00:52]} 13. Kh1 {[%emt 0:01:12]} c4 {[%emt 0:00:26]} 14. e4 {[%emt 0:02:43]} Nb4 {[%emt 0:03:09]} 15. e5 {[%emt 0:02:13]} Ng4 {[%emt 0:03:11]} 16. e6 {[%emt 0:01:09]} Nf2+ {[%emt 0:00:04]} 17. Rxf2 {[%emt 0:00:02]} Qxf2 {[%emt 0:00:01]} 18. exd7 {[%emt 0:00:12]} Nd3 {[%emt 0:00:40]} 19. Ne4 {[%emt 0:01:29]} Qb6 {[%emt 0:01:21]} 20. f5 {[%emt 0:00:22]} Bxb2 {[%emt 0:00:16]} 21. Bxb2 {[%emt 0:01:02]} Qxb2 {[%emt 0:00:03]} 22. f6 {[%emt 0:00:24]} exf6 {[%emt 0:00:16]} 23. Rb1 {[%emt 0:00:10]} Qe5 {[%emt 0:00:18]} 24. Qf1 {[%emt 0:00:08]} f5 {[%emt 0:00:08]} 25. Nd2 {[%emt 0:00:06]} Rxa2 {[%emt 0:00:58]} 26. Nhf3 {[%emt 0:00:04]} Qe3 {[%emt 0:00:53]} 27. Nxc4 {[%emt 0:00:02]} Nf2+ {[%emt 0:00:05]} 28. Kg1 {[%emt 0:00:02]} Qc5 {[%emt 0:00:09]} 29. Ncd2 {[%emt 0:00:11]} Ne4+ {[%emt 0:00:10]} 30. Kh1 {[%emt 0:00:02]} Nxd2 {[%emt 0:00:02]} 31. Nxd2 {[%emt 0:00:02]} Rxd2 {[%emt 0:00:02]} 32. Qe1 {[%emt 0:00:08]} Qd4 {[%emt 0:00:45]} 33. Rc1 {[%emt 0:00:07]} Kg7 {[%emt 0:00:07]} 34. h4 {[%emt 0:00:08]} Qb2 {[%emt 0:00:11]} 35. Bf3 {[%emt 0:00:07]} Rd8 {[%emt 0:00:09]} 36. Rc7 {[%emt 0:00:04]} Rd3 {[%emt 0:00:12]} 37. Bg2 {[%emt 0:00:05]} Rxg3 {[%emt 0:00:04]} 38. Qxg3 {[%emt 0:00:02]} Qb6 {[%emt 0:00:05]} 39. Qc3+ {[%emt 0:00:03]} Kh6 {[%emt 0:00:03]} 40. Qc6 {[%emt 0:00:08]} Qf2 {[%emt 0:00:07]} 41. Qc1+ {[%emt 0:00:05]} f4 {[%emt 0:00:04]} 42. Rc4 {[%emt 0:00:04]} Qxh4+ {[%emt 0:00:05]} 43. Kg1 {[%emt 0:00:01]} g5 {[%emt 0:00:02]} 44. Qc3 {[%emt 0:00:05]} Kg6 {[%emt 0:00:05]} 45. Qd3+ {[%emt 0:00:08]} f5 {[%emt 0:00:05]} 46. Qe2 {[%emt 0:00:02]} Qg3 {[%emt 0:00:13]} 47. Qe6+ {[%emt 0:00:02]} Kg7 {[%emt 0:00:06]} 48. Qe7+ {[%emt 0:00:03]} Kg6 {[%emt 0:00:01]} 49. Qxd6+ {[%emt 0:00:09]} Kh5 {[%emt 0:00:05]} 50. Qe5 {[%emt 0:00:03]} Rxd7 {[%emt 0:00:05]} 51. Qe8+ {[%emt 0:00:09]} Kg4 {[%emt 0:00:05]} 52. Qxd7 {[%emt 0:00:05]} Qe1+ {[%emt 0:00:03]} 53. Kh2 {[%emt 0:00:04]} Qg3+ {[%emt 0:00:03]} 54. Kg1 {[%emt 0:00:02]} Qe1+ {[%emt 0:00:05]} 55. Bf1 {[%emt 0:00:14]} Qg3+ {[%emt 0:00:14]} 56. Kh1 {[%emt 0:00:03]} Qh4+ {[%emt 0:00:05]} 57. Kg1 {[%emt 0:00:03]} Qg3+ {[%emt 0:00:02]} 58. Kh1 {[%emt 0:00:03]} Qh4+ {[%emt 0:00:06]} 59. Kg1 {[%emt 0:00:04]} Qg3+ {[%emt 0:00:06]} 1/2-1/2

[Event "European Online Club-ch-F 2021"]
[Site "Online"]
[Date "2021.03.27"]
[Round "6.11"]
[White "Hamdouchi, Hicham"]
[Black "Reizniece-Ozola, Dana"]
[Result "1/2-1/2"]
[ECO "B06"]
[WhiteElo "2561"]
[BlackElo "2279"]
[Annotator "ChessBase"]
[PlyCount "109"]
[EventDate "2021.03.27"]
[EventType "team-tourn"]
[EventCountry "NET"]
[SourceTitle "playchess.com"]
[Source "ChessBase"]
[SourceQuality "1"]
[TimeControl "900+5"]

1. e4 {[%emt 0:00:00]} g6 {[%emt 0:00:09]} 2. d4 {[%emt 0:00:04]} Bg7 {[%emt 0:00:04]} 3. Nc3 {[%emt 0:00:02]} d6 {[%emt 0:00:06]} 4. Be3 {[%emt 0:00:03]} a6 {[%emt 0:00:05]} 5. h4 {[%emt 0:00:07]} h5 {[%emt 0:00:07]} 6. Nf3 {[%emt 0:00:10]} b5 {[%emt 0:00:05]} 7. Ng5 {[%emt 0:00:06]} Bb7 {[%emt 0:00:37]} 8. Qd2 {[%emt 0:00:19]} Nd7 {[%emt 0:00:07]} 9. a4 {[%emt 0:00:56]} c6 {[%emt 0:01:12]} 10. Bd3 {[%emt 0:01:05]} Ngf6 {[%emt 0:00:14]} 11. f3 {[%emt 0:00:07]} Qc7 {[%emt 0:00:29]} 12. Ne2 {[%emt 0:00:44]} e5 {[%emt 0:01:35]} 13. c4 {[%emt 0:02:32]} bxc4 {[%emt 0:00:43]} 14. Bxc4 {[%emt 0:00:04]} d5 {[%emt 0:00:06]} 15. Ba2 {[%emt 0:00:30]} O-O {[%emt 0:00:50]} 16. Rc1 {[%emt 0:04:00]} exd4 {[%emt 0:01:07]} 17. Nxd4 {[%emt 0:00:21]} Qg3+ {[%emt 0:02:59]} 18. Kf1 {[%emt 0:01:12]} Qd6 {[%emt 0:00:53]} 19. Nb3 {[%emt 0:01:11]} Rac8 {[%emt 0:03:37]} 20. Nc5 {[%emt 0:00:20]} Qb8 {[%emt 0:00:08]} 21. Nxd7 {[%emt 0:01:35]} Nxd7 {[%emt 0:00:02]} 22. Bd4 {[%emt 0:00:02]} Bxd4 {[%emt 0:00:18]} 23. Qxd4 {[%emt 0:00:02]} Qf4 {[%emt 0:00:05]} 24. Kf2 {[%emt 0:00:19]} c5 {[%emt 0:00:05]} 25. Qe3 {[%emt 0:00:55]} Qxe3+ {[%emt 0:00:02]} 26. Kxe3 {[%emt 0:00:02]} d4+ {[%emt 0:00:02]} 27. Kd2 {[%emt 0:00:03]} Ne5 {[%emt 0:00:17]} 28. f4 {[%emt 0:00:12]} Ng4 {[%emt 0:00:08]} 29. a5 {[%emt 0:00:06]} Ne3 {[%emt 0:00:09]} 30. g3 {[%emt 0:00:07]} c4 {[%emt 0:00:12]} 31. Rhe1 {[%emt 0:00:02]} Rfe8 {[%emt 0:00:16]} 32. Rxe3 {[%emt 0:00:04]} dxe3+ {[%emt 0:00:05]} 33. Kxe3 {[%emt 0:00:02]} Bxe4 {[%emt 0:00:14]} 34. Nxe4 {[%emt 0:00:03]} f5 {[%emt 0:00:02]} 35. Rxc4 {[%emt 0:00:05]} Rxc4 {[%emt 0:00:08]} 36. Bxc4+ {[%emt 0:00:02]} Kf8 {[%emt 0:00:01]} 37. Bxa6 {[%emt 0:00:25]} Rxe4+ {[%emt 0:00:03]} 38. Kd3 {[%emt 0:00:01]} Ra4 {[%emt 0:00:10]} 39. b4 {[%emt 0:00:05]} Rxb4 {[%emt 0:00:03]} 40. Bc4 {[%emt 0:00:02]} Ke7 {[%emt 0:00:04]} 41. a6 {[%emt 0:00:02]} Ra4 {[%emt 0:00:06]} 42. Kc3 {[%emt 0:00:02]} Kd6 {[%emt 0:00:12]} 43. Kb3 {[%emt 0:00:02]} Ra1 {[%emt 0:00:06]} 44. Kb2 {[%emt 0:00:04]} Ra5 {[%emt 0:00:06]} 45. Bf7 {[%emt 0:00:05]} Ke7 {[%emt 0:00:18]} 46. Bxg6 {[%emt 0:00:02]} Kf6 {[%emt 0:00:03]} 47. Bxh5 {[%emt 0:00:02]} Rxa6 {[%emt 0:00:02]} 48. g4 {[%emt 0:00:02]} fxg4 {[%emt 0:00:02]} 49. Bxg4 {[%emt 0:00:02]} Ra4 {[%emt 0:00:03]} 50. Bd1 {[%emt 0:00:07]} Rxf4 {[%emt 0:00:02]} 51. h5 {[%emt 0:00:02]} Rh4 {[%emt 0:00:02]} 52. Kc3 {[%emt 0:00:03]} Kg5 {[%emt 0:00:02]} 53. Kd2 {[%emt 0:00:01]} Rh1 {[%emt 0:00:03]} 54. Be2 {[%emt 0:00:03]} Rxh5 {[%emt 0:00:07]} 55. Bxh5 {[%emt 0:00:02]} 1/2-1/2

[Event "European Online Club-ch-F 2021"]
[Site "Online"]
[Date "2021.03.27"]
[Round "6.12"]
[White "Grandell, Anders"]
[Black "Delorme, Axel"]
[Result "1/2-1/2"]
[ECO "E11"]
[WhiteElo "2296"]
[BlackElo "2480"]
[Annotator "ChessBase"]
[PlyCount "86"]
[EventDate "2021.03.27"]
[EventType "team-tourn"]
[EventCountry "NET"]
[SourceTitle "playchess.com"]
[Source "ChessBase"]
[SourceQuality "1"]
[TimeControl "900+5"]

1. d4 {[%emt 0:00:00]} Nf6 {[%emt 0:00:05]} 2. c4 {[%emt 0:00:03]} e6 {[%emt 0:00:01]} 3. Nf3 {[%emt 0:00:02]} Bb4+ {[%emt 0:00:03]} 4. Bd2 {[%emt 0:00:02]} c5 {[%emt 0:00:11]} 5. Bxb4 {[%emt 0:00:08]} cxb4 {[%emt 0:00:17]} 6. g3 {[%emt 0:00:04]} d6 {[%emt 0:00:08]} 7. Bg2 {[%emt 0:00:02]} Nc6 {[%emt 0:00:03]} 8. O-O {[%emt 0:00:15]} O-O {[%emt 0:00:04]} 9. a3 {[%emt 0:00:02]} bxa3 {[%emt 0:00:17]} 10. Nxa3 {[%emt 0:00:19]} e5 {[%emt 0:00:13]} 11. Nb5 {[%emt 0:04:11]} e4 {[%emt 0:04:10]} 12. Nd2 {[%emt 0:00:58]} Bf5 {[%emt 0:00:08]} 13. c5 {[%emt 0:00:54]} dxc5 {[%emt 0:02:02]} 14. dxc5 {[%emt 0:00:04]} Qe7 {[%emt 0:00:08]} 15. Nd6 {[%emt 0:01:07]} Bg6 {[%emt 0:00:03]} 16. N2c4 {[%emt 0:00:12]} Rfd8 {[%emt 0:03:29]} 17. Qd2 {[%emt 0:00:49]} Ne5 {[%emt 0:01:02]} 18. Qd4 {[%emt 0:00:39]} Nxc4 {[%emt 0:00:09]} 19. Qxc4 {[%emt 0:00:01]} b6 {[%emt 0:00:02]} 20. b4 {[%emt 0:00:01]} a5 {[%emt 0:00:57]} 21. Rfd1 {[%emt 0:00:43]} bxc5 {[%emt 0:01:29]} 22. bxc5 {[%emt 0:00:04]} Rab8 {[%emt 0:01:19]} 23. Rxa5 {[%emt 0:01:47]} e3 {[%emt 0:00:08]} 24. f3 {[%emt 0:00:43]} Ne8 {[%emt 0:00:03]} 25. Qd4 {[%emt 0:01:52]} Qc7 {[%emt 0:00:06]} 26. Raa1 {[%emt 0:00:10]} Rbc8 {[%emt 0:00:10]} 27. Qxe3 {[%emt 0:01:21]} Nxd6 {[%emt 0:00:07]} 28. cxd6 {[%emt 0:00:06]} Rxd6 {[%emt 0:00:02]} 29. Rxd6 {[%emt 0:00:09]} Qxd6 {[%emt 0:00:01]} 30. Rc1 {[%emt 0:00:16]} Rd8 {[%emt 0:00:03]} 31. Qf2 {[%emt 0:00:09]} Qd2 {[%emt 0:00:04]} 32. Ra1 {[%emt 0:00:08]} Bc2 {[%emt 0:00:04]} 33. h4 {[%emt 0:00:13]} h5 {[%emt 0:00:16]} 34. Bf1 {[%emt 0:00:02]} g6 {[%emt 0:00:04]} 35. Ra7 {[%emt 0:00:03]} Bb3 {[%emt 0:00:03]} 36. Qb6 {[%emt 0:00:03]} Be6 {[%emt 0:00:07]} 37. Qc5 {[%emt 0:00:06]} Qd1 {[%emt 0:00:03]} 38. Kf2 {[%emt 0:00:04]} Qd2 {[%emt 0:00:02]} 39. Qe3 {[%emt 0:00:03]} Qd6 {[%emt 0:00:02]} 40. Bg2 {[%emt 0:00:07]} Qd1 {[%emt 0:00:04]} 41. Bf1 {[%emt 0:00:03]} Qd6 {[%emt 0:00:02]} 42. Bg2 {[%emt 0:00:02]} Qd1 {[%emt 0:00:02]} 43. Bf1 {[%emt 0:00:04]} Qd6 {[%emt 0:00:03]} 1/2-1/2

[Event "European Online Club-ch-F 2021"]
[Site "Online"]
[Date "2021.03.27"]
[Round "6.13"]
[White "Moiseenko, Alexander"]
[Black "Gokerkan, Cem Kaan"]
[Result "0-1"]
[ECO "E52"]
[WhiteElo "2620"]
[BlackElo "2470"]
[Annotator "ChessBase"]
[PlyCount "108"]
[EventDate "2021.03.27"]
[EventType "team-tourn"]
[EventCountry "NET"]
[SourceTitle "playchess.com"]
[Source "ChessBase"]
[SourceQuality "1"]
[TimeControl "900+5"]

1. d4 {[%emt 0:00:00]} Nf6 {[%emt 0:00:03]} 2. c4 {[%emt 0:00:03]} e6 {[%emt 0:00:05]} 3. Nc3 {[%emt 0:00:03]} Bb4 {[%emt 0:00:03]} 4. Nf3 {[%emt 0:00:01]} b6 {[%emt 0:00:07]} 5. e3 {[%emt 0:00:03]} O-O {[%emt 0:00:12]} 6. Bd3 {[%emt 0:00:03]} Bb7 {[%emt 0:00:06]} 7. O-O {[%emt 0:00:06]} d5 {[%emt 0:01:10]} 8. cxd5 {[%emt 0:00:04]} exd5 {[%emt 0:00:12]} 9. Ne5 {[%emt 0:00:03]} Nbd7 {[%emt 0:00:49]} 10. f4 {[%emt 0:00:09]} Ne4 {[%emt 0:01:32]} 11. Nxe4 {[%emt 0:00:45]} dxe4 {[%emt 0:00:00]} 12. Bc4 {[%emt 0:00:02]} Nxe5 {[%emt 0:03:29]} 13. fxe5 {[%emt 0:00:05]} Bd5 {[%emt 0:00:07]} 14. Qb3 {[%emt 0:00:15]} Bxc4 {[%emt 0:00:02]} 15. Qxc4 {[%emt 0:00:02]} Be7 {[%emt 0:00:04]} 16. Qc6 {[%emt 0:01:10]} f5 {[%emt 0:00:48]} 17. Bd2 {[%emt 0:00:59]} Kh8 {[%emt 0:00:39]} 18. Rac1 {[%emt 0:01:05]} Rc8 {[%emt 0:00:03]} 19. b4 {[%emt 0:00:58]} Bg5 {[%emt 0:00:42]} 20. d5 {[%emt 0:01:14]} Qe8 {[%emt 0:03:18]} 21. e6 {[%emt 0:02:58]} Qxc6 {[%emt 0:00:40]} 22. Rxc6 {[%emt 0:00:03]} Rcd8 {[%emt 0:00:01]} 23. h4 {[%emt 0:01:17]} Bxh4 {[%emt 0:01:13]} 24. Rxc7 {[%emt 0:00:28]} Rxd5 {[%emt 0:00:02]} 25. Bc3 {[%emt 0:00:07]} Bf6 {[%emt 0:00:03]} 26. Bxf6 {[%emt 0:00:55]} gxf6 {[%emt 0:00:00]} 27. Rxa7 {[%emt 0:01:12]} Rg8 {[%emt 0:00:33]} 28. Rd7 {[%emt 0:01:11]} Re5 {[%emt 0:00:38]} 29. Rc1 {[%emt 0:00:53]} Rxe6 {[%emt 0:00:01]} 30. Rcc7 {[%emt 0:00:02]} Ra8 {[%emt 0:00:17]} 31. Rxh7+ {[%emt 0:00:04]} Kg8 {[%emt 0:00:01]} 32. Rcg7+ {[%emt 0:00:04]} Kf8 {[%emt 0:00:02]} 33. Rb7 {[%emt 0:00:14]} Kg8 {[%emt 0:00:02]} 34. Rhc7 {[%emt 0:00:21]} Rd8 {[%emt 0:00:30]} 35. Kf2 {[%emt 0:00:24]} f4 {[%emt 0:00:09]} 36. exf4 {[%emt 0:00:04]} e3+ {[%emt 0:00:00]} 37. Ke1 {[%emt 0:00:04]} e2 {[%emt 0:00:02]} 38. Rg7+ {[%emt 0:00:12]} Kf8 {[%emt 0:00:04]} 39. Rbf7+ {[%emt 0:00:12]} Ke8 {[%emt 0:00:06]} 40. Rg8+ {[%emt 0:00:02]} Kxf7 {[%emt 0:00:01]} 41. Rxd8 {[%emt 0:00:01]} Re4 {[%emt 0:00:01]} 42. a3 {[%emt 0:00:08]} Kg6 {[%emt 0:00:13]} 43. Rd6 {[%emt 0:00:14]} b5 {[%emt 0:00:03]} 44. Rd5 {[%emt 0:00:03]} Re3 {[%emt 0:00:16]} 45. Rxb5 {[%emt 0:00:03]} Rxa3 {[%emt 0:00:01]} 46. Kxe2 {[%emt 0:00:02]} Rb3 {[%emt 0:00:05]} 47. Kf2 {[%emt 0:00:02]} Rb2+ {[%emt 0:00:11]} 48. Kf3 {[%emt 0:00:03]} Rb3+ {[%emt 0:00:01]} 49. Kg4 {[%emt 0:00:10]} Rb2 {[%emt 0:00:09]} 50. g3 {[%emt 0:00:04]} Rb3 {[%emt 0:00:01]} 51. f5+ {[%emt 0:00:02]} Kh6 {[%emt 0:00:02]} 52. Rb6 {[%emt 0:00:03]} Kg7 {[%emt 0:00:03]} 53. Kf4 {[%emt 0:00:11]} Rc3 {[%emt 0:00:04]} 54. Kg4 {[%emt 0:00:10]} Rd3 {[%emt 0:00:05]} 0-1